fUSD/lending_fUSD_20250320
["ID","MTS","AMOUNT","RATE_DAILY","PERIOD"]
[356457788,1742483457046,-291.83,0.000366,31]
[356457789,1742483457056,-291.83,0.000366,31]
[356457790,1742483457066,-291.83,0.000366,31]
[356457791,1742483457082,-291.83,0.000366,31]
[356457792,1742483457092,-291.83,0.000366,31]
[356457793,1742483457101,-291.83,0.000366,31]
[356457794,1742483457111,-1000.0,0.00036682,30]
[356457795,1742483457120,-152.0,0.00036763,6]
[356457796,1742483457130,-296.51,0.00036986,2]
[356457797,1742483457140,-650.0,0.00037,2]
[356457798,1742483457151,-150.19,0.00037228,2]
[356457799,1742483457161,-152.0,0.00037405,7]
[356457800,1742483457171,-3000.0,0.000375,2]
[356457801,1742483457180,-581.71,0.00037914,2]
[356457802,1742483457190,-200.0,0.00038,120]
[356457803,1742483457200,-211.26277972,0.00038,120]
[356457804,1742483457210,-163.73009841,0.00038,120]
[356457805,1742483457219,-152.0,0.00038048,8]
[356457806,1742483457230,-150.19,0.00038114,2]
[356457807,1742483457239,-296.51,0.00038356,2]
[356457808,1742483457248,-435.42680831,0.00038356,7]
[356457809,1742483457258,-430.07,0.00038443,2]
[356457810,1742483457267,-152.0,0.00038691,9]
[356457811,1742483457276,-300.0,0.00038721,6]
[356457812,1742483457286,-182.6812,0.00038888,30]
[356457813,1742483457295,-363.82,0.00039,30]
[356457814,1742483457304,-292.4758664,0.00039,120]
[356457815,1742483457313,-10092.43285345,0.00039,120]
[356457816,1742483457323,-700.0,0.00039,2]
[356457817,1742483457333,-150.19,0.00039001,2]
[356457818,1742483457342,-1782.9097,0.00039172,5]
[356457819,1742483457351,-498.4125723,0.00039211,10]
[356457820,1742483457360,-152.0,0.00039334,10]
[356457821,1742483457370,-291.83,0.000396,31]
[356457822,1742483457379,-291.83,0.000396,31]
[356457823,1742483457389,-291.83,0.000396,31]
[356457824,1742483457399,-291.83,0.000396,31]
[356457825,1742483457409,-291.83,0.000396,31]
[356457826,1742483457420,-291.83,0.000396,31]
[356457827,1742483457430,-291.83,0.000396,31]
[356457828,1742483457440,-291.83,0.000396,31]
[356457829,1742483457450,-291.83,0.000396,31]
[356457830,1742483457460,-291.83,0.000396,31]
[356457831,1742483457470,-291.83,0.000396,31]
[356457832,1742483457479,-291.83,0.000396,31]
[356457833,1742483457489,-291.83,0.000396,31]
[356457834,1742483457498,-291.83,0.000396,31]
[356457835,1742483457507,-291.83,0.000396,31]
[356457836,1742483457518,-291.83,0.000396,31]
[356457837,1742483457527,-291.83,0.000396,31]
[356457838,1742483457536,-291.83,0.000396,31]
[356457839,1742483457545,-291.83,0.000396,31]
[356457840,1742483457555,-291.83,0.000396,31]
[356457841,1742483457566,-291.83,0.000396,31]
[356457842,1742483457578,-291.83,0.000396,31]
[356457843,1742483457587,-291.83,0.000396,31]
[356457844,1742483457596,-291.83,0.000396,31]
[356457845,1742483457605,-296.51,0.00039726,2]
[356457846,1742483457617,-150.19,0.00039887,2]
[356457847,1742483457627,-4004.15,0.000399,2]
[356457848,1742483457636,-1438.3854193,0.00039972,2]
[356457849,1742483457647,-6936.2183933,0.00039973,2]
[356457850,1742483457656,-152.0,0.00039977,11]
[356457851,1742483457665,-50000.0,0.0004,40]
[356457852,1742483457675,-10018.0,0.0004,120]
[356457853,1742483457685,-10018.0,0.0004,120]
[356457854,1742483457694,-10018.0,0.0004,120]
[356457855,1742483457704,-41893.4292203,0.0004,120]
[356457856,1742483457713,-200.0,0.0004,120]
[356457857,1742483457722,-211.26277972,0.0004,120]
[356457858,1742483457731,-163.73009841,0.0004,120]
[356457859,1742483457741,-346.83138765,0.0004,120]
[356457860,1742483457751,-500.0,0.0004,120]
[356457861,1742483457760,-500.0,0.0004,120]
[356457862,1742483457770,-9063.62620164,0.0004,8]
[356457863,1742483457779,-500.0,0.00040159,60]
[356457864,1742483457789,-581.71,0.00040178,2]
[356457865,1742483457798,-3000.0,0.000403,2]
[356457866,1742483457807,-177.47,0.000405,14]
[356457867,1742483457817,-152.0,0.0004062,12]
[356457868,1742483457826,-500.0,0.00040707,60]
[356457869,1742483457836,-150.19,0.00040774,2]
[356457870,1742483457845,-5000.0,0.00040782,3]
[356457871,1742483457855,-5000.0,0.00040782,2]
[356457872,1742483457864,-50000.0,0.00041,41]
[356457873,1742483457874,-750.0,0.00041,2]
[356457874,1742483457883,-190.0,0.00041,14]
[356457875,1742483457892,-296.51,0.00041095,120]
[356457876,1742483457902,-500.0,0.00041096,120]
[356457877,1742483457911,-500.0,0.00041096,120]
[356457878,1742483457921,-300.0,0.00041096,14]
[356457879,1742483457931,-500.0,0.00041255,60]
[356457880,1742483457940,-500.0,0.00041255,60]
[356457881,1742483457950,-152.0,0.00041262,13]
[356457882,1742483457960,-300.0,0.00041528,7]
[356457883,1742483457973,-153.0,0.00041531,90]
[356457884,1742483457983,-184.02477351,0.00041568,30]
[356457885,1742483457992,-150.0,0.00041568,30]
[356457886,1742483458002,-150.19,0.0004166,2]
[356457887,1742483458011,-1000.0,0.0004175,50]
[356457888,1742483458021,-500.0,0.00041803,60]
[356457889,1742483458030,-200.0,0.00041833,120]
[356457890,1742483458040,-152.0,0.00041905,14]
[356457891,1742483458050,-50000.0,0.00042,42]
[356457892,1742483458059,-200.0,0.00042,120]
[356457893,1742483458068,-660.07308274,0.00042,120]
[356457894,1742483458078,-500.0,0.00042351,60]
[356457895,1742483458087,-500.0,0.00042351,60]
[356457896,1742483458096,-500.0,0.00042386,60]
[356457897,1742483458106,-581.71,0.00042442,2]
[356457898,1742483458116,-296.51,0.00042465,120]
[356457899,1742483458125,-1000.0,0.000425,50]
[356457900,1742483458135,-150.19,0.00042546,2]
[356457901,1742483458144,-152.0,0.00042548,15]
[356457902,1742483458154,-153.946,0.00042625,120]
[356457903,1742483458164,-153.946,0.00042625,120]
[356457904,1742483458173,-153.947,0.00042625,120]
[356457905,1742483458183,-153.946,0.00042625,120]
[356457906,1742483458192,-153.946,0.00042625,120]
[356457907,1742483458201,-1016.39,0.000427,14]
[356457908,1742483458210,-291.83,0.000427,33]
[356457909,1742483458220,-291.83,0.000427,33]
[356457910,1742483458230,-291.83,0.000427,33]
[356457911,1742483458239,-291.83,0.000427,33]
[356457912,1742483458249,-291.83,0.000427,33]
[356457913,1742483458260,-291.83,0.000427,33]
[356457914,1742483458270,-291.83,0.000427,33]
[356457915,1742483458279,-291.83,0.000427,33]
[356457916,1742483458289,-291.83,0.000427,33]
[356457917,1742483458299,-291.83,0.000427,33]
[356457918,1742483458309,-291.83,0.000427,33]
[356457919,1742483458318,-291.83,0.000427,33]
[356457920,1742483458328,-291.83,0.000427,33]
[356457921,1742483458338,-291.83,0.000427,33]
[356457922,1742483458348,-291.83,0.000427,33]
[356457923,1742483458357,-291.83,0.000427,33]
[356457924,1742483458367,-291.83,0.000427,33]
[356457925,1742483458376,-291.83,0.000427,33]
[356457926,1742483458386,-291.83,0.000427,33]
[356457927,1742483458395,-291.83,0.000427,33]
[356457928,1742483458405,-291.83,0.000427,33]
[356457929,1742483458414,-291.83,0.000427,33]
[356457930,1742483458424,-291.83,0.000427,33]
[356457931,1742483458433,-291.83,0.000427,33]
[356457932,1742483458443,-150.0,0.00042723,30]
[356457933,1742483458452,-174.47,0.0004274,91]
[356457934,1742483458462,-1000.0,0.0004275,50]
[356457935,1742483458471,-500.0,0.00042899,60]
[356457936,1742483458481,-50000.0,0.00043,43]
[356457937,1742483458490,-422.52555943,0.00043,120]
[356457938,1742483458500,-327.46019681,0.00043,120]
[356457939,1742483458509,-659.5704143,0.00043,30]
[356457940,1742483458519,-930714.07390019,0.00043,30]
[356457941,1742483458528,-1000.0,0.00043,50]
[356457942,1742483458538,-800.0,0.00043,2]
[356457943,1742483458549,-3000.0,0.00043,2]
[356457944,1742483458558,-1000.0,0.00043032,30]
[356457945,1742483458569,-191.0,0.00043151,90]
[356457946,1742483458584,-152.0,0.00043191,16]
[356457947,1742483458594,-150.19,0.00043433,2]
[356457948,1742483458604,-500.0,0.00043447,60]
[356457949,1742483458615,-500.0,0.00043482,60]
[356457950,1742483458625,-402.72608662,0.0004356,2]
[356457951,1742483458634,-299.44342,0.000437,120]
[356457952,1742483458643,-152.0,0.00043834,17]
[356457953,1742483458654,-500.0,0.00043835,120]
[356457954,1742483458664,-614.54073836,0.00043835,120]
[356457955,1742483458674,-506.10714859,0.00043835,120]
[356457956,1742483458683,-500.0,0.00043835,120]
[356457957,1742483458692,-460.91413424,0.00043835,120]
[356457958,1742483458702,-471.4507514,0.00043835,120]
[356457959,1742483458711,-500.42265393,0.00043835,2]
[356457960,1742483458721,-500.0,0.00043835,3]
[356457961,1742483458731,-501.55976427,0.00043835,120]
[356457962,1742483458740,-498.85706264,0.00043835,120]
[356457963,1742483458749,-508.77357771,0.00043835,120]
[356457964,1742483458759,-500.41671925,0.00043835,120]
[356457965,1742483458770,-272.08937274,0.00043835,120]
[356457966,1742483458779,-501.41221608,0.00043835,120]
[356457967,1742483458788,-500.0,0.00043835,120]
[356457968,1742483458798,-501.81821046,0.00043835,120]
[356457969,1742483458807,-522.35085716,0.00043835,120]
[356457970,1742483458817,-568.29692817,0.00043835,120]
[356457971,1742483458828,-500.72544132,0.00043835,120]
[356457972,1742483458838,-501.03772216,0.00043835,120]
[356457973,1742483458848,-222.69,0.00043835,120]
[356457974,1742483458857,-500.0,0.00043835,120]
[356457975,1742483458867,-500.0,0.00043835,120]
[356457976,1742483458876,-500.0,0.00043835,120]
[356457977,1742483458886,-500.0,0.00043835,120]
[356457978,1742483458896,-506.12465453,0.00043835,120]
[356457979,1742483458905,-509.04403429,0.00043835,120]
[356457980,1742483458915,-500.0,0.00043835,120]
[356457981,1742483458925,-500.0,0.00043835,120]
[356457982,1742483458935,-500.0,0.00043835,120]
[356457983,1742483458945,-500.0,0.00043835,120]
[356457984,1742483458954,-500.0,0.00043835,120]
[356457985,1742483458964,-510.18841806,0.00043835,120]
[356457986,1742483458973,-500.0,0.00043835,120]
[356457987,1742483458983,-510.88182445,0.00043835,120]
[356457988,1742483458992,-500.0,0.00043835,120]
[356457989,1742483459001,-500.0,0.00043835,120]
[356457990,1742483459013,-1215.73,0.00043835,2]
[356457991,1742483459022,-500.0,0.00043835,120]
[356457992,1742483459031,-505.55826059,0.00043835,120]
[356457993,1742483459041,-506.69249342,0.00043835,120]
[356457994,1742483459050,-510.37602247,0.00043835,120]
[356457995,1742483459059,-500.0,0.00043835,8]
[356457996,1742483459069,-505.92783838,0.00043835,120]
[356457997,1742483459079,-507.40171592,0.00043835,120]
[356457998,1742483459088,-500.0,0.00043835,120]
[356457999,1742483459097,-500.0,0.00043835,120]
[356458000,1742483459107,-500.0,0.00043835,120]
[356458001,1742483459116,-500.0,0.00043835,120]
[356458002,1742483459125,-500.0,0.00043835,120]
[356458003,1742483459135,-500.0,0.00043835,120]
[356458004,1742483459144,-500.0,0.00043835,120]
[356458005,1742483459154,-500.0,0.00043835,120]
[356458006,1742483459164,-500.0,0.00043835,120]
[356458007,1742483459173,-500.0,0.00043835,120]
[356458008,1742483459183,-500.0,0.00043835,120]
[356458009,1742483459192,-500.0,0.00043835,120]
[356458010,1742483459202,-500.0,0.00043835,120]
[356458011,1742483459211,-500.0,0.00043835,120]
[356458012,1742483459221,-500.0,0.00043835,120]
[356458013,1742483459230,-500.0,0.00043835,120]
[356458014,1742483459240,-500.0,0.00043835,120]
[356458015,1742483459249,-500.0,0.00043835,120]
[356458016,1742483459259,-500.0,0.00043835,120]
[356458017,1742483459269,-508.3516364,0.00043835,120]
[356458018,1742483459279,-500.0,0.00043835,120]
[356458019,1742483459289,-500.0,0.00043835,120]
[356458020,1742483459298,-500.0,0.00043835,120]
[356458021,1742483459307,-500.0,0.00043835,120]
[356458022,1742483459316,-626.97226509,0.00043835,120]
[356458023,1742483459326,-500.0,0.00043835,120]
[356458024,1742483459335,-500.0,0.00043835,10]
[356458025,1742483459344,-500.0,0.00043835,120]
[356458026,1742483459353,-511.21072069,0.00043835,120]
[356458027,1742483459363,-500.0,0.00043835,120]
[356458028,1742483459372,-500.0,0.00043835,120]
[356458029,1742483459382,-500.0,0.00043835,120]
[356458030,1742483459391,-500.0,0.00043835,120]
[356458031,1742483459401,-500.0,0.00043835,120]
[356458032,1742483459410,-509.53881249,0.00043835,120]
[356458033,1742483459419,-500.0,0.00043835,120]
[356458034,1742483459429,-500.0,0.00043835,120]
[356458035,1742483459438,-500.0,0.00043835,120]
[356458036,1742483459447,-500.0,0.00043835,120]
[356458037,1742483459457,-704.86,0.00043835,120]
[356458038,1742483459466,-300.0,0.00043835,2]
[356458039,1742483459475,-547.06496795,0.00043835,120]
[356458040,1742483459486,-500.0,0.00043835,120]
[356458041,1742483459495,-500.0,0.00043835,120]
[356458042,1742483459504,-500.0,0.00043835,60]
[356458043,1742483459513,-500.0,0.00043835,120]
[356458044,1742483459523,-704.538403,0.00043835,120]
[356458045,1742483459532,-500.0,0.00043835,120]
[356458046,1742483459541,-158.409541,0.00043835,120]
[356458047,1742483459551,-151.886926,0.00043835,120]
[356458048,1742483459560,-500.0,0.00043835,120]
[356458049,1742483459571,-500.0,0.00043835,120]
[356458050,1742483459583,-500.0,0.00043835,120]
[356458051,1742483459592,-528.86620296,0.00043835,120]
[356458052,1742483459601,-646.80477837,0.00043835,120]
[356458053,1742483459611,-505.79243387,0.00043835,120]
[356458054,1742483459620,-500.0,0.00043835,120]
[356458055,1742483459630,-536.86,0.00043835,120]
[356458056,1742483459639,-500.0,0.00043835,120]
[356458057,1742483459649,-555.6,0.00043835,120]
[356458058,1742483459659,-489.6850001,0.00043835,120]
[356458059,1742483459668,-593.39191501,0.00043835,120]
[356458060,1742483459678,-505.86588701,0.00043835,120]
[356458061,1742483459687,-522.14864961,0.00043835,120]
[356458062,1742483459696,-500.0,0.00043835,120]
[356458063,1742483459706,-505.89559124,0.00043835,120]
[356458064,1742483459715,-509.57864178,0.00043835,120]
[356458065,1742483459725,-500.0,0.00043835,120]
[356458066,1742483459734,-500.0,0.00043835,120]
[356458067,1742483459743,-500.0,0.00043835,120]
[356458068,1742483459753,-500.0,0.00043835,120]
[356458069,1742483459763,-859.91926,0.00043835,120]
[356458070,1742483459772,-500.0,0.00043835,120]
[356458071,1742483459781,-500.0,0.00043835,120]
[356458072,1742483459790,-506.63998895,0.00043835,120]
[356458073,1742483459799,-500.0,0.00043835,120]
[356458074,1742483459808,-500.0,0.00043835,120]
[356458075,1742483459818,-500.0,0.00043835,120]
[356458076,1742483459827,-500.0,0.00043835,120]
[356458077,1742483459836,-500.0,0.00043835,120]
[356458078,1742483459846,-500.0,0.00043835,120]
[356458079,1742483459855,-505.93352542,0.00043835,120]
[356458080,1742483459864,-500.0,0.00043835,120]
[356458081,1742483459874,-528.46337204,0.00043835,120]
[356458082,1742483459883,-500.0,0.00043835,120]
[356458083,1742483459892,-522.36436323,0.00043835,120]
[356458084,1742483459902,-500.0,0.00043835,120]
[356458085,1742483459911,-507.06444683,0.00043835,120]
[356458086,1742483459920,-500.0,0.00043835,120]
[356458087,1742483459929,-500.0,0.00043835,120]
[356458088,1742483459938,-500.0,0.00043835,120]
[356458089,1742483459948,-506.31863559,0.00043835,120]
[356458090,1742483459958,-300.0,0.00043835,120]
[356458091,1742483459967,-500.0,0.00043835,120]
[356458092,1742483459976,-500.0,0.00043835,120]
[356458093,1742483459985,-1058.89,0.00043835,120]
[356458094,1742483459995,-500.0,0.00043835,30]
[356458095,1742483460005,-530.09827071,0.00043835,120]
[356458096,1742483460015,-500.0,0.00043835,120]
[356458097,1742483460024,-500.0,0.00043835,120]
[356458098,1742483460034,-508.37229462,0.00043835,120]
[356458099,1742483460044,-500.0,0.00043835,120]
[356458100,1742483460054,-296.51,0.00043835,120]
[356458101,1742483460064,-500.0,0.00043835,2]
[356458102,1742483460073,-411.67571517,0.00043835,120]
[356458103,1742483460083,-501.57976613,0.00043835,120]
[356458104,1742483460093,-500.0,0.00043835,120]
[356458105,1742483460102,-250.02086856,0.00043835,120]
[356458106,1742483460112,-500.0,0.00043835,120]
[356458107,1742483460123,-500.0,0.00043835,120]
[356458108,1742483460133,-515.15887809,0.00043835,120]
[356458109,1742483460142,-500.0,0.00043835,120]
[356458110,1742483460152,-509.52257958,0.00043835,120]
[356458111,1742483460162,-500.0,0.00043835,30]
[356458112,1742483460171,-520.57391306,0.00043835,120]
[356458113,1742483460180,-500.0,0.00043835,120]
[356458114,1742483460190,-265.63112536,0.00043835,120]
[356458115,1742483460200,-504.2568788,0.00043835,120]
[356458116,1742483460209,-506.25652274,0.00043835,120]
[356458117,1742483460351,-500.0,0.00043835,120]
[356458118,1742483460361,-500.0,0.00043835,120]
[356458119,1742483460370,-500.0,0.00043835,120]
[356458120,1742483460380,-500.0,0.00043835,120]
[356458121,1742483460390,-506.30298661,0.00043835,120]
[356458122,1742483460399,-545.76365702,0.00043835,120]
[356458123,1742483460409,-500.0,0.00043835,120]
[356458124,1742483460419,-500.0,0.00043835,120]
[356458125,1742483460428,-500.09921044,0.00043835,120]
[356458126,1742483460438,-500.0,0.00043835,120]
[356458127,1742483460447,-500.0,0.00043835,120]
[356458128,1742483460456,-500.0,0.00043835,120]
[356458129,1742483460466,-500.0,0.00043835,120]
[356458130,1742483460475,-500.0,0.00043835,120]
[356458131,1742483460484,-378.80547428,0.00043835,120]
[356458132,1742483460493,-500.0,0.00043835,120]
[356458133,1742483460503,-500.0,0.00043835,120]
[356458134,1742483460514,-500.0,0.00043835,120]
[356458135,1742483460523,-500.0,0.00043835,120]
[356458136,1742483460533,-500.0,0.00043835,120]
[356458137,1742483460543,-500.0,0.00043835,120]
[356458138,1742483460552,-500.0,0.00043835,120]
[356458139,1742483460562,-500.0,0.00043835,120]
[356458140,1742483460576,-500.0,0.00043835,120]
[356458141,1742483460585,-500.0,0.00043835,120]
[356458142,1742483460595,-500.0,0.00043835,120]
[356458143,1742483460605,-500.0,0.00043835,120]
[356458144,1742483460615,-500.0,0.00043835,120]
[356458145,1742483460626,-500.0,0.00043835,120]
[356458146,1742483460636,-500.0,0.00043835,120]
[356458147,1742483460646,-409.0557427,0.00043835,120]
[356458148,1742483460658,-500.0,0.00043835,120]
[356458149,1742483460667,-500.0,0.00043835,120]
[356458150,1742483460677,-500.0,0.00043835,120]
[356458151,1742483460686,-280.9,0.00043835,7]
[356458152,1742483460695,-500.0,0.00043835,120]
[356458153,1742483460705,-500.0,0.00043835,120]
[356458154,1742483460714,-500.0,0.00043835,120]
[356458155,1742483460724,-500.0,0.00043835,120]
[356458156,1742483460733,-500.0,0.00043835,120]
[356458157,1742483460743,-508.50774779,0.00043835,120]
[356458158,1742483460753,-500.0,0.00043835,120]
[356458159,1742483460763,-500.0,0.00043835,120]
[356458160,1742483460773,-508.2095599,0.00043835,120]
[356458161,1742483460783,-500.0,0.00043835,120]
[356458162,1742483460792,-500.0,0.00043835,120]
[356458163,1742483460802,-500.0,0.00043835,120]
[356458164,1742483460812,-500.0,0.00043835,120]
[356458165,1742483460821,-304.07308617,0.00043835,120]
[356458166,1742483460831,-500.0,0.00043835,120]
[356458167,1742483460840,-500.0,0.00043835,120]
[356458168,1742483460850,-504.06,0.00043835,120]
[356458169,1742483460860,-500.0,0.00043835,120]
[356458170,1742483460869,-500.0,0.00043835,120]
[356458171,1742483460879,-500.0,0.00043835,120]
[356458172,1742483460889,-507.83304254,0.00043835,120]
[356458173,1742483460898,-500.0,0.00043835,120]
[356458174,1742483460908,-500.0,0.00043835,120]
[356458175,1742483460918,-330.25194074,0.00043835,120]
[356458176,1742483460927,-506.67461185,0.00043835,120]
[356458177,1742483460936,-500.0,0.00043835,120]
[356458178,1742483460946,-500.0,0.00043835,120]
[356458179,1742483460955,-500.0,0.00043835,120]
[356458180,1742483460965,-500.0,0.00043835,120]
[356458181,1742483460974,-500.0,0.00043835,120]
[356458182,1742483460983,-500.0,0.00043835,120]
[356458183,1742483460993,-1000.0,0.00043835,120]
[356458184,1742483461003,-500.0,0.00043835,120]
[356458185,1742483461014,-500.0,0.00043835,120]
[356458186,1742483461023,-500.0,0.00043835,120]
[356458187,1742483461034,-500.0,0.00043835,120]
[356458188,1742483461044,-500.0,0.00043835,120]
[356458189,1742483461053,-500.0,0.00043835,120]
[356458190,1742483461063,-509.42791166,0.00043835,120]
[356458191,1742483461073,-500.0,0.00043835,120]
[356458192,1742483461081,-500.0,0.00043835,120]
[356458193,1742483461091,-500.0,0.00043835,120]
[356458194,1742483461101,-500.0,0.00043835,120]
[356458195,1742483461110,-500.0,0.00043835,120]
[356458196,1742483461119,-500.19556625,0.00043835,120]
[356458197,1742483461129,-501.90732739,0.00043835,120]
[356458198,1742483461139,-517.79040431,0.00043835,120]
[356458199,1742483461148,-500.0,0.00043835,120]
[356458200,1742483461158,-500.0,0.00043835,120]
[356458201,1742483461168,-500.0,0.00043835,120]
[356458202,1742483461177,-501.680123,0.00043835,120]
[356458203,1742483461186,-500.0,0.00043835,120]
[356458204,1742483461196,-500.0,0.00043835,120]
[356458205,1742483461205,-505.74717886,0.00043835,120]
[356458206,1742483461215,-500.0,0.00043835,120]
[356458207,1742483461224,-500.0,0.00043835,120]
[356458208,1742483461234,-500.0,0.00043835,120]
[356458209,1742483461243,-296.03697155,0.00043835,120]
[356458210,1742483461252,-500.0,0.00043835,120]
[356458211,1742483461264,-500.0,0.00043835,120]
[356458212,1742483461273,-500.0,0.00043835,120]
[356458213,1742483461283,-500.0,0.00043835,120]
[356458214,1742483461292,-500.0,0.00043835,120]
[356458215,1742483461302,-500.0,0.00043835,120]
[356458216,1742483461312,-500.0,0.00043835,120]
[356458217,1742483461321,-500.0,0.00043835,120]
[356458218,1742483461331,-500.0,0.00043835,120]
[356458219,1742483461341,-5000.0,0.00043835,120]
[356458220,1742483461351,-500.0,0.00043835,120]
[356458221,1742483461360,-500.0,0.00043835,120]
[356458222,1742483461370,-500.0,0.00043835,120]
[356458223,1742483461379,-500.0,0.00043835,120]
[356458224,1742483461389,-500.0,0.00043835,120]
[356458225,1742483461399,-500.0,0.00043835,120]
[356458226,1742483461407,-500.0,0.00043835,120]
[356458227,1742483461416,-500.0,0.00043835,120]
[356458228,1742483461426,-500.0,0.00043835,120]
[356458229,1742483461435,-500.0,0.00043835,120]
[356458230,1742483461444,-500.0,0.00043835,120]
[356458231,1742483461454,-500.0,0.00043835,120]
[356458232,1742483461464,-500.0,0.00043835,120]
[356458233,1742483461473,-500.0,0.00043835,120]
[356458234,1742483461483,-500.0,0.00043835,120]
[356458235,1742483461492,-500.0,0.00043835,120]
[356458236,1742483461502,-500.0,0.00043835,120]
[356458237,1742483461513,-500.0,0.00043835,120]
[356458238,1742483461523,-500.0,0.00043835,120]
[356458239,1742483461533,-500.0,0.00043835,120]
[356458240,1742483461542,-500.0,0.00043835,120]
[356458241,1742483461553,-500.0,0.00043835,120]
[356458242,1742483461563,-500.0,0.00043835,120]
[356458243,1742483461573,-500.0,0.00043835,120]
[356458244,1742483461585,-500.0,0.00043835,120]
[356458245,1742483461595,-500.0,0.00043835,120]
[356458246,1742483461604,-500.0,0.00043835,120]
[356458247,1742483461614,-500.0,0.00043835,120]
[356458248,1742483461625,-500.0,0.00043835,120]
[356458249,1742483461635,-500.0,0.00043835,120]
[356458250,1742483461645,-2013.45028245,0.00043835,30]
[356458251,1742483461656,-500.0,0.00043835,120]
[356458252,1742483461667,-500.0,0.00043835,120]
[356458253,1742483461677,-500.0,0.00043835,120]
[356458254,1742483461686,-500.0,0.00043835,120]
[356458255,1742483461696,-500.0,0.00043835,120]
[356458256,1742483461706,-500.0,0.00043835,120]
[356458257,1742483461715,-500.0,0.00043835,120]
[356458258,1742483461726,-502.96336355,0.00043835,120]
[356458259,1742483461735,-500.0,0.00043835,120]
[356458260,1742483461744,-704.1,0.00043835,120]
[356458261,1742483461754,-500.0,0.00043835,120]
[356458262,1742483461765,-500.0,0.00043835,120]
[356458263,1742483461774,-500.0,0.00043835,120]
[356458264,1742483461783,-500.0,0.00043835,120]
[356458265,1742483461793,-500.0,0.00043835,120]
[356458266,1742483461803,-500.0,0.00043835,120]
[356458267,1742483461812,-500.0,0.00043835,120]
[356458268,1742483461822,-500.0,0.00043835,120]
[356458269,1742483461831,-500.0,0.00043835,120]
[356458270,1742483461841,-500.0,0.00043835,120]
[356458271,1742483461851,-500.0,0.00043835,120]
[356458272,1742483461860,-500.0,0.00043835,120]
[356458273,1742483461869,-500.0,0.00043835,120]
[356458274,1742483461879,-500.0,0.00043835,120]
[356458275,1742483461888,-500.0,0.00043835,120]
[356458276,1742483461899,-500.0,0.00043835,120]
[356458277,1742483461909,-500.0,0.00043835,120]
[356458278,1742483461919,-594.38310602,0.00043835,120]
[356458279,1742483461929,-500.0,0.00043835,120]
[356458280,1742483461939,-500.0,0.00043835,120]
[356458281,1742483461949,-503.15955321,0.00043835,120]
[356458282,1742483461959,-500.0,0.00043835,120]
[356458283,1742483461968,-500.0,0.00043835,120]
[356458284,1742483461977,-506.32234974,0.00043835,120]
[356458285,1742483461987,-500.0,0.00043835,120]
[356458286,1742483461996,-500.0,0.00043835,120]
[356458287,1742483462005,-500.0,0.00043835,120]